bitfinex/quotes_ETHUSD_20250925
["timestamp","ask_amount","ask_price","bid_price","bid_amount"]
[1758805183190,4.521,3986.9,3986.8,0.002]
[1758805183381,7.0292144,3986.9,3986.8,0.002]
[1758805183760,6.611,3986.9,3986.8,0.2449]
[1758805183956,9.1192144,3986.9,3986.8,0.002]
[1758805184287,7.0292144,3986.9,3986.8,0.002]
[1758805184490,9.1192144,3986.9,3986.8,0.002]
[1758805184890,0.1248,3987.3,3986.8,0.2449]
[1758805185091,6.61,3987.2,3986.8,0.4333]
[1758805185254,2.50815149,3987.0,3986.9,0.2429]
[1758805185582,0.1248,3987.3,3987.0,0.2429]
[1758805185757,6.61,3987.2,3987.0,0.2429]
[1758805185962,2.50808858,3987.1,3987.0,0.2429]
[1758805186357,9.11803387,3987.2,3987.0,0.2429]
[1758805186561,6.61,3987.2,3987.0,0.2429]
[1758805186974,2.50814014,3987.1,3986.8,0.002]
[1758805187178,9.11717284,3987.0,3986.8,0.2449]
[1758805187398,9.11717284,3987.0,3986.8,0.002]
[1758805187399,2.5082144,3986.9,3986.8,0.002]
[1758805187604,3.1881144,3986.9,3986.8,0.002]
[1758805188304,3.1873144,3986.9,3986.8,0.002]
[1758805188684,2.5074144,3986.9,3986.8,0.002]
[1758805191508,3.1873144,3986.9,3986.8,0.002]
[1758805191722,2.5074144,3986.9,3986.8,0.002]
[1758805192329,3.1873144,3986.9,3986.8,0.002]
[1758805193629,24.06598303,3986.9,3986.8,0.002]
[1758805193928,6.48505525,3986.9,3986.8,0.002]
[1758805194129,12.7933144,3986.9,3986.8,0.002]
[1758805194914,5.5074144,3986.9,3986.8,0.002]
[1758805195392,12.1134144,3986.9,3986.8,0.002]
[1758805195797,12.7933144,3986.9,3986.8,0.002]
[1758805196714,6.1873144,3986.9,3986.8,0.002]
[1758805196921,12.7923144,3986.9,3986.8,0.002]
[1758805197430,23.0300904,3986.9,3986.8,0.002]
[1758805197624,15.3376654,3986.9,3986.8,0.002]
[1758805198239,12.7923144,3986.9,3986.8,0.002]
[1758805198411,14.9705064,3986.9,3986.8,0.002]
[1758805198606,5.5074144,3986.9,3986.8,0.002]
[1758805198932,12.1124144,3986.9,3986.8,0.002]
[1758805199098,2.5074144,3986.9,3986.8,0.002]
[1758805199301,9.1124144,3986.9,3986.8,0.6762]
[1758805199801,9.1124144,3986.9,3986.8,0.2449]
[1758805200359,9.1124144,3986.9,3986.8,0.002]
[1758805200857,2.5074144,3986.9,3986.8,0.002]
[1758805201061,12.9938144,3986.9,3986.8,0.002]
[1758805201205,16.3195824,3986.9,3986.8,0.002]
[1758805201406,5.5074144,3986.9,3986.8,0.002]
[1758805201641,2.5082144,3986.9,3986.8,0.002]
[1758805201815,9.1112144,3986.9,3986.8,0.002]
[1758805202012,6.603,3986.9,3986.8,0.2424]
[1758805202220,4.514,3987.8,3986.9,0.792]
[1758805202444,4.514,3987.8,3987.1,2.50804293]
[1758805202651,0.001,3988.2,3987.7,3.0]
[1758805202834,0.001,3988.2,3987.8,3.692]
[1758805203139,0.001,3988.2,3988.1,3.0]
[1758805203340,0.939,3988.2,3987.9,0.692]
[1758805203511,0.939,3988.2,3988.1,0.1248]
[1758805203710,0.939,3988.2,3988.1,0.8168]
[1758805203915,4.513,3988.2,3988.1,0.8168]
[1758805204240,4.513,3988.2,3988.1,0.94839046]
[1758805204444,4.513,3988.2,3988.1,0.2404]
[1758805204606,4.513,3988.2,3987.8,0.4516]
[1758805204811,4.59748146,3988.1,3987.4,0.2404]
[1758805205016,2.50763678,3987.9,3987.4,0.2404]
[1758805205222,4.511,3987.8,3987.4,0.6096]
[1758805205454,4.511,3987.7,3987.0,0.2404]
[1758805205637,4.511,3987.6,3987.0,0.2404]
[1758805206105,0.2393,3988.2,3987.0,0.2404]
[1758805206308,6.8393,3988.1,3987.0,0.2404]
[1758805206541,2.5082144,3986.9,3986.4,0.2404]
[1758805206764,6.6,3986.9,3986.4,0.2404]
[1758805206937,6.6,3986.9,3986.8,0.2424]
[1758805207142,4.51,3986.9,3986.8,0.694]
[1758805207355,4.51,3987.0,3986.8,0.694]
[1758805207511,4.51,3987.1,3986.8,0.3714]
[1758805207711,4.51,3987.1,3986.8,0.002]
[1758805207938,2.5082144,3986.9,3986.8,0.002]
[1758805208555,3.1921144,3986.9,3986.8,0.002]
[1758805209238,2.5082144,3986.9,3986.8,0.002]
[1758805209455,2.09,3987.0,3986.8,0.694]
[1758805209612,4.509,3986.9,3986.8,0.002]
[1758805209816,7.0172144,3986.9,3986.8,0.002]
[1758805210265,9.1072144,3986.9,3986.8,0.002]
[1758805211551,9.5554144,3986.9,3986.8,0.002]
[1758805211762,9.8053144,3986.9,3986.8,0.002]
[1758805212855,9.1072144,3986.9,3986.8,0.002]
[1758805213382,9.8053144,3986.9,3986.8,0.002]
[1758805213583,9.3571144,3986.9,3986.8,0.002]
[1758805213747,9.8045144,3986.9,3986.8,0.002]
[1758805213951,2.5074144,3986.9,3986.8,0.002]
[1758805214151,9.1054144,3986.9,3986.8,0.002]
[1758805214455,0.1248,3987.0,3986.8,0.002]
[1758805214655,6.6022144,3986.9,3986.8,0.6863]
[1758805214842,9.1062144,3986.9,3986.8,0.002]
[1758805215250,9.5544144,3986.9,3986.8,0.002]
[1758805215581,9.1062144,3986.9,3986.8,0.002]
[1758805215786,2.5082144,3986.9,3986.8,0.002]
[1758805215986,4.5982144,3986.9,3986.8,0.002]
[1758805216186,9.1052144,3986.9,3986.8,0.2443]
[1758805216486,6.597,3986.9,3986.8,0.2443]
[1758805216649,9.1052144,3986.9,3986.8,0.2443]
[1758805216849,9.1052144,3986.9,3986.8,0.002]
[1758805218267,9.8033144,3986.9,3986.8,0.002]
[1758805219063,7.7123144,3986.9,3986.8,0.002]
[1758805219375,12.8023144,3986.9,3986.8,0.002]
[1758805219582,0.39340423,3987.1,3986.8,0.002]
[1758805219888,2.50810479,3987.1,3986.8,0.6863]
[1758805220098,3.576,3987.0,3986.9,0.6843]
[1758805220301,0.39339143,3987.6,3986.9,0.6843]
[1758805220302,2.09,3987.4,3986.9,0.70938214]
[1758805220474,2.09,3987.4,3987.0,2.50809075]
[1758805220475,4.506,3987.3,3987.0,2.50809075]
[1758805220675,4.506,3987.3,3987.2,2.50802568]
[1758805220877,0.001,3987.8,3987.2,0.6843]
[1758805221206,0.001,3987.8,3986.8,0.002]
[1758805221207,2.793,3987.7,3987.3,0.70937962]
[1758805221377,0.001,3987.8,3987.6,2.50776562]
[1758805221579,0.001,3987.8,3987.7,3.6935773]
[1758805221815,4.506,3987.8,3987.7,3.6935773]
[1758805222703,0.001,3987.8,3987.7,3.6935773]
[1758805222872,0.001,3987.8,3987.7,6.6935773]
[1758805223067,0.001,3987.8,3987.7,4.18586609]
[1758805223270,0.001,3987.8,3986.4,0.002]
[1758805223271,2.5082144,3986.9,3986.4,0.002]
[1758805223470,9.8003144,3986.9,3986.4,0.002]
[1758805223670,9.3521144,3986.9,3986.4,0.002]
[1758805223883,2.5082144,3986.9,3986.4,0.002]
[1758805224079,9.1022144,3986.9,3986.4,0.002]
[1758805224281,9.8003144,3986.9,3986.4,0.002]
[1758805225612,2.5082144,3986.9,3986.4,0.002]
[1758805225813,9.1022144,3986.9,3986.4,0.002]
[1758805226118,9.8003144,3986.9,3986.4,0.002]
[1758805227914,9.1022144,3986.9,3986.4,0.002]
[1758805228112,2.5082144,3986.9,3986.4,0.002]
[1758805228313,9.1012144,3986.9,3986.4,0.002]
[1758805228816,9.7993144,3986.9,3986.4,0.002]
[1758805230123,9.3511144,3986.9,3986.4,0.002]
[1758805230717,0.39340687,3987.0,3986.8,0.2443]
[1758805230718,0.51820687,3987.0,3986.8,0.2443]
[1758805230889,6.592,3986.9,3986.8,0.2443]
[1758805231089,9.1002144,3986.9,3986.8,0.2443]
[1758805231291,9.1002144,3986.9,3986.8,0.002]
[1758805231928,2.5082144,3986.9,3986.8,0.002]
[1758805232133,9.1002144,3986.9,3986.8,0.002]
[1758805232422,9.7993144,3986.9,3986.8,0.002]
[1758805232636,9.5494144,3986.9,3986.8,0.002]
[1758805232796,9.1012144,3986.9,3986.8,0.002]
[1758805233703,7.0112144,3986.9,3986.8,0.002]
[1758805233955,2.091,3986.9,3986.8,0.6863]
[1758805234104,6.592,3986.9,3986.8,0.6863]
[1758805234907,6.592,3986.9,3986.8,0.2443]
[1758805235108,6.592,3986.9,3986.8,0.6863]
[1758805235331,6.592,3986.9,3986.8,1.00827826]
[1758805235627,6.592,3986.9,3986.8,0.32397826]
[1758805235831,4.502,3986.9,3986.8,0.002]
[1758805236038,9.1002144,3986.9,3986.8,0.002]
[1758805236449,9.7983144,3986.9,3986.8,0.002]
[1758805237000,9.7973144,3986.9,3986.8,0.002]
[1758805237319,9.79606028,3986.9,3986.8,0.002]
[1758805238734,9.09796028,3986.9,3986.8,0.002]
[1758805239100,9.54536028,3986.9,3986.8,0.002]
[1758805239314,9.79526028,3986.9,3986.8,0.002]
[1758805240735,2.50716028,3986.9,3986.8,0.002]
[1758805241040,9.09616028,3986.9,3986.8,0.002]
[1758805242822,2.50716028,3986.9,3986.8,0.002]
[1758805243028,9.09616028,3986.9,3986.8,0.002]
[1758805243739,0.39338846,3987.0,3986.8,0.002]
[1758805244036,0.001,3987.3,3986.8,0.8277]
[1758805244037,0.745,3986.9,3986.8,0.8277]
[1758805244202,0.745,3986.9,3986.8,1.41214465]
[1758805244399,0.745,3986.9,3986.8,3.92042196]
[1758805245312,0.745,3986.9,3986.8,1.41214465]
[1758805245516,0.745,3986.9,3986.8,0.8277]
[1758805246704,0.745,3986.9,3986.8,0.367]
[1758805247108,0.745,3986.9,3986.8,0.1268]
[1758805247339,0.1258,3987.3,3986.8,0.002]
[1758805247525,0.001,3987.3,3987.2,2.50802568]
[1758805247839,4.498,3987.3,3987.2,3.80571365]
[1758805248021,4.498,3987.3,3987.2,3.7806334]
[1758805248661,0.001,3987.3,3987.2,3.7806334]
[1758805249235,0.001,3987.3,3987.2,6.7806334]
[1758805251584,4.27,3987.3,3986.8,0.002]
[1758805251784,0.001,3987.3,3986.9,0.7009]
[1758805251985,4.495,3987.2,3987.0,0.2402]
[1758805252197,2.091,3987.3,3987.0,2.74833142]
[1758805252198,4.494,3987.1,3987.0,2.74833142]
[1758805252486,4.494,3987.1,3987.0,3.06943456]
[1758805252685,4.494,3987.1,3987.0,3.06945463]
[1758805252888,0.001,3987.3,3987.1,2.50808754]
[1758805253185,4.494,3987.2,3987.1,2.74828754]
[1758805253353,4.494,3987.2,3987.1,3.20898754]
[1758805253540,4.494,3987.2,3987.1,3.81301783]
[1758805253978,4.494,3987.2,3987.1,0.60403029]
[1758805254191,4.494,3987.2,3986.8,0.002]
[1758805254405,4.494,3987.2,3986.9,2.5081541]
[1758805254587,4.494,3987.2,3986.8,2.51026333]
[1758805255188,4.494,3987.2,3986.9,2.50821261]
[1758805255398,0.2402,3987.1,3986.8,0.002]
[1758805255555,0.6904,3987.1,3986.8,0.002]
[1758805255789,0.6904,3987.0,3986.8,0.002]
[1758805256196,0.6904,3986.9,3986.8,0.002]
[1758805256819,0.6894,3986.9,3986.8,0.002]
[1758805257795,3.3224144,3986.9,3986.8,0.002]
[1758805258186,10.0764484,3986.9,3986.8,0.002]
[1758805258615,9.4131434,3986.9,3986.8,0.002]
[1758805259220,8.4874144,3986.9,3986.8,0.002]
[1758805259615,6.3224144,3986.9,3986.8,0.002]
[1758805259817,12.9034144,3986.9,3986.8,0.002]
[1758805260018,12.2140144,3986.9,3986.8,0.002]
[1758805260314,15.0300564,3986.9,3986.8,0.002]
[1758805260515,12.9044144,3986.9,3986.8,0.002]
[1758805260921,0.39339309,3987.1,3986.8,0.002]
[1758805261107,2.5082144,3986.9,3986.8,0.002]
[1758805261308,5.2370444,3986.9,3986.8,0.002]
[1758805261513,5.4044894,3986.9,3986.8,0.002]
[1758805261989,8.4044894,3986.9,3986.8,0.002]
[1758805262622,6.1986144,3986.9,3986.8,0.002]
[1758805262920,12.7796144,3986.9,3986.8,0.002]
[1758805263091,9.7796144,3986.9,3986.8,0.002]
[1758805263301,2.5082144,3986.9,3986.8,0.002]
[1758805263501,9.0892144,3986.9,3986.8,0.002]
[1758805263698,6.9992144,3986.9,3986.8,0.002]
[1758805263903,2.50817006,3987.0,3986.8,0.002]
[1758805264104,6.58,3986.9,3986.8,0.2368]
[1758805264438,9.0882144,3986.9,3986.8,0.002]
[1758805264606,9.0874144,3986.9,3986.8,0.002]
[1758805266001,9.7648144,3986.9,3986.8,0.002]
[1758805266207,13.5568144,3986.9,3986.8,0.002]
[1758805266404,35.9291624,3986.9,3986.8,0.002]
[1758805266627,3.30046607,3986.5,3986.4,0.002]
[1758805266826,10.78946607,3986.5,3986.4,0.002]
[1758805267139,20.42062123,3986.5,3986.4,0.002]
[1758805267445,47.67865423,3986.5,3986.4,0.002]
[1758805267736,47.66119723,3986.5,3986.4,0.002]
[1758805267941,34.94270094,3986.5,3986.4,0.002]
[1758805268143,0.792,3985.9,3984.0,0.4332]
[1758805268306,3.792,3985.7,3984.1,0.2348]
[1758805268656,2.50947379,3984.9,3984.1,2.74477568]
[1758805268943,6.579,3984.8,3984.2,2.50986833]
[1758805269142,10.2104,3985.6,3984.1,0.80361374]
[1758805269143,6.579,3984.7,3984.1,0.80361374]
[1758805269443,2.09,3984.6,3984.1,0.80361374]
[1758805269639,2.09,3984.6,3984.2,0.2348]
[1758805269841,2.09,3984.6,3983.8,0.668]
[1758805270211,2.09,3984.6,3984.0,2.50998485]
[1758805270553,2.509774,3984.5,3983.8,0.668]
[1758805270788,0.39358843,3985.3,3983.8,0.31782058]
[1758805270941,0.39358843,3985.3,3981.9,0.634]
[1758805270942,0.1248,3984.7,3984.0,0.1248]
[1758805271142,6.99766506,3984.6,3984.0,0.1248]
[1758805271348,6.99766506,3984.6,3982.6,0.50399386]
[1758805271349,9.272732,3984.5,3982.8,0.2256]
[1758805271593,3.792,3984.3,3982.8,0.2256]
[1758805271761,3.0,3984.1,3982.8,0.2256]
[1758805272083,2.51041872,3983.4,3981.2,2.51180548]
[1758805272252,3.792,3983.2,3981.3,0.94718055]
[1758805272583,3.0,3983.0,3981.3,0.6928]
[1758805272739,6.579,3983.1,3981.4,0.6928]
[1758805272944,2.51094564,3982.6,3981.5,0.6928]
[1758805273246,6.579,3983.1,3981.5,3.20440785]
[1758805273247,4.488,3982.5,3981.5,3.20440785]
[1758805273445,4.488,3982.5,3981.5,0.2256]
[1758805273692,16.45627747,3982.3,3979.9,0.2256]
[1758805273974,0.792,3981.8,3980.0,0.4672]
[1758805274174,6.579,3981.7,3980.0,0.49232562]
[1758805274377,6.579,3981.6,3980.1,0.2256]
[1758805274688,0.2306,3981.9,3980.1,0.2256]
[1758805274689,2.091,3981.5,3980.2,0.02512436]
[1758805274845,0.39390552,3982.1,3981.8,2.51139661]
[1758805275048,0.4616,3982.6,3982.0,2.51124482]
[1758805275247,6.579,3982.5,3980.8,0.792]
[1758805275562,6.579,3982.4,3981.5,0.2256]
[1758805275762,6.579,3982.3,3981.5,0.2256]
[1758805275979,4.488,3982.2,3980.4,0.4672]
[1758805276155,4.488,3982.2,3980.6,0.2256]
[1758805276156,4.7186,3982.1,3980.6,0.2256]
[1758805276358,2.091,3982.0,3980.7,0.4923212]
[1758805276684,6.58,3981.9,3980.9,3.0]
[1758805276848,0.2306,3982.9,3981.1,3.792]
[1758805277052,2.842,3982.8,3981.2,0.6928]
[1758805277367,2.842,3982.8,3981.1,0.792]
[1758805277368,2.091,3982.7,3982.6,2.51092251]
[1758805277685,0.39377111,3983.7,3983.1,2.51055847]
[1758805277844,2.092,3983.6,3983.2,0.2256]
[1758805278046,0.6922,3984.3,3983.1,2.51059858]
[1758805278269,4.57769745,3984.2,3983.3,2.51043246]
[1758805278611,6.581,3984.1,3983.4,0.54976742]
[1758805278819,2.092,3984.0,3983.1,0.2256]
[1758805279023,2.092,3984.0,3982.5,0.6928]
[1758805279224,2.51017498,3983.8,3982.9,2.51068065]
[1758805279377,2.5102328,3983.7,3982.7,2.51085946]
[1758805279573,0.4616,3983.9,3982.9,2.51073221]
[1758805279771,0.4616,3983.9,3982.8,0.57146265]
[1758805279772,2.51024709,3983.7,3982.8,0.57146265]
[1758805280026,2.51029764,3983.6,3982.8,2.5107393]
[1758805280312,4.488,3983.5,3982.8,2.5107393]
[1758805280474,4.488,3983.5,3982.9,0.6928]
[1758805280677,3.30145502,3985.0,3981.5,4.6035673]
[1758805280678,0.6922,3984.7,3983.0,0.7179067]
[1758805280908,2.907,3984.4,3984.0,2.50998965]
[1758805281114,2.907,3984.4,3983.7,0.4672]
[1758805281411,2.907,3984.4,3983.2,2.51053143]
[1758805281412,3.3686,3984.4,3984.1,0.1248]
[1758805281615,0.2306,3984.3,3984.1,0.1248]
[1758805281820,0.2306,3986.1,3984.2,0.6928]
[1758805281976,6.58,3986.0,3984.3,0.6928]
[1758805282181,7.0416,3986.0,3985.2,2.50925844]
[1758805282506,7.0416,3986.0,3985.4,2.50912526]
[1758805282671,7.0416,3986.0,3985.1,2.50934462]
[1758805282875,7.0416,3986.0,3984.9,2.50947326]
[1758805283072,7.0416,3986.0,3985.4,2.50910009]
[1758805283309,7.0416,3986.0,3984.9,0.02509473]
[1758805283516,2.50889953,3985.9,3984.7,0.2256]
[1758805283880,0.6922,3985.8,3984.7,2.50959687]
[1758805284216,14.779757,3985.7,3983.6,0.4672]
[1758805284425,3.792,3985.5,3983.6,0.4672]
[1758805284627,2.50928435,3985.2,3984.0,2.50999934]
[1758805284926,2.50928435,3985.2,3982.5,4.60296379]
[1758805284927,0.792,3984.9,3983.0,0.6928]
[1758805285087,0.6922,3984.8,3983.1,0.2256]
[1758805285274,2.092,3984.7,3983.6,2.51027069]
[1758805285476,4.486,3984.6,3983.7,0.25102707]
[1758805285680,0.6922,3984.8,3984.3,2.50979267]
[1758805285909,6.577,3984.7,3983.7,0.25102707]
[1758805286151,6.577,3984.7,3983.5,3.20311356]
[1758805286436,0.6922,3984.8,3984.3,2.50981319]
[1758805286618,4.486,3984.6,3984.3,2.50981319]
[1758805287062,4.486,3984.6,3983.5,0.6928]
[1758805287207,0.6922,3984.5,3983.5,0.6928]
[1758805287404,0.6922,3984.9,3983.6,2.51029219]
[1758805287630,2.919,3984.8,3984.6,2.50961713]
[1758805287962,0.827,3984.7,3984.0,0.0251004]
[1758805288122,0.827,3984.7,3984.5,2.50967032]
[1758805288438,0.827,3984.7,3984.6,2.50966219]
[1758805288829,0.827,3984.7,3983.7,0.2256]
[1758805289140,0.4616,3984.6,3983.7,2.51020331]
[1758805289306,0.6922,3984.6,3983.3,0.2256]
[1758805289839,2.289,3984.5,3983.9,2.51005616]
[1758805290045,4.3792,3984.5,3983.3,0.2256]
[1758805290210,4.3792,3984.5,3983.7,2.51017027]
[1758805290407,4.3792,3984.5,3983.3,0.2256]
[1758805290643,1.08582974,3985.1,3983.4,0.49230418]
[1758805290825,6.576,3985.0,3984.4,2.50977373]
[1758805291036,0.6922,3985.1,3983.9,0.6928]
[1758805291220,6.577,3985.0,3984.0,2.53514056]
[1758805291427,2.092,3984.9,3984.1,0.32279406]
[1758805291625,0.6922,3985.0,3984.1,0.32279406]
[1758805291841,0.6922,3985.0,3984.7,0.1248]
[1758805291842,6.577,3984.9,3984.7,0.1248]
[1758805292041,0.6922,3984.8,3984.7,0.1248]
[1758805292224,6.577,3984.9,3984.7,0.1248]
[1758805292550,0.2306,3985.1,3984.8,2.5094849]
[1758805292751,2.091,3985.0,3984.9,2.50941063]
[1758805292910,3.39359849,3985.6,3984.9,2.50941063]
[1758805292911,2.091,3985.1,3984.9,0.26342106]
[1758805293114,4.484,3985.0,3981.3,0.14848]
[1758805293405,4.484,3985.0,3981.9,0.2256]
[1758805293406,3.0,3984.4,3981.9,0.2256]
[1758805293602,17.03459658,3984.9,3981.9,0.2256]
[1758805293603,0.792,3983.8,3982.0,2.51130085]
[1758805293763,0.2306,3983.7,3982.5,2.51097901]
[1758805293979,0.2306,3983.7,3982.6,0.2510979]
[1758805294301,4.378,3983.6,3983.0,2.51061114]
[1758805294455,4.379,3983.5,3983.1,2.51058899]
[1758805294759,4.379,3983.5,3982.7,0.6928]
[1758805294760,0.2306,3984.3,3983.2,0.2256]
[1758805294961,6.576,3984.2,3983.2,0.2256]
[1758805295156,6.576,3984.2,3982.8,0.2256]
[1758805295412,9.563495,3984.1,3982.3,0.2256]
[1758805295572,2.51025661,3983.7,3982.3,2.73671058]
[1758805295757,0.6922,3983.6,3981.9,0.2256]
[1758805296105,5.51041823,3983.4,3981.9,0.2256]
[1758805296404,2.51074755,3982.9,3981.5,3.0]
[1758805296712,5.1762,3982.8,3981.4,0.2256]
[1758805297012,5.1762,3982.8,3981.5,2.51160577]
[1758805297193,5.1762,3982.8,3981.6,2.5115464]
[1758805297359,5.1762,3982.8,3981.7,2.5114823]
[1758805297608,2.51092497,3982.6,3981.4,0.2256]
[1758805297905,2.7842,3982.5,3980.9,0.2256]
[1758805298205,2.7842,3982.5,3981.0,0.62049184]
[1758805298367,2.7842,3982.5,3981.3,2.51170591]
[1758805298568,2.5114169,3981.9,3980.7,2.51211904]
[1758805298902,2.5114169,3981.9,3980.4,2.73791032]
[1758805298903,7.68663582,3981.8,3980.8,2.51205776]
[1758805299120,7.68663582,3981.8,3980.5,2.51218608]
[1758805299121,2.51161853,3981.5,3980.5,2.51218608]
[1758805299416,0.4616,3981.5,3980.2,0.4672]
[1758805299559,2.74232836,3981.4,3980.3,2.51436591]
[1758805299767,2.51174638,3981.3,3980.3,2.51436591]
[1758805300114,4.483,3981.2,3980.3,0.002]
[1758805300419,4.483,3981.2,3980.3,2.51434315]
[1758805300420,5.1752,3981.2,3980.3,2.51434315]
[1758805300697,0.792,3980.4,3977.6,0.59845396]
[1758805300858,20.63336158,3981.3,3975.6,1.0]
[1758805300859,7.621345,3980.3,3978.2,0.2256]
[1758805301084,0.792,3979.9,3978.2,0.27393664]
[1758805301286,3.6877,3979.8,3977.9,0.2413]
[1758805301512,2.51281583,3979.6,3977.9,0.2413]
[1758805301714,4.484,3979.5,3978.0,2.51382604]
[1758805301893,2.7797,3979.4,3977.9,0.2413]
[1758805302098,2.092,3979.4,3978.9,2.51324562]
[1758805302395,2.092,3979.4,3978.0,0.49913826]
[1758805302396,3.6877,3979.3,3977.1,0.474]
[1758805302701,4.7166,3979.2,3977.9,2.51387017]
[1758805302906,6.8086,3979.2,3979.0,0.1256]
[1758805303126,2.51325614,3979.0,3977.6,2.51407565]
[1758805303414,0.6877,3979.1,3978.1,2.51373383]
[1758805303601,3.20084327,3979.1,3977.3,0.2413]
[1758805303802,0.2326,3979.6,3977.4,3.01331102]
[1758805304018,6.577,3979.5,3978.5,2.51350177]
[1758805304224,4.0246,3979.4,3974.2,0.75600933]
[1758805304384,4.0246,3979.4,3975.2,0.0008]
[1758805304385,0.792,3977.5,3975.2,0.0008]
[1758805304774,13.2,3977.4,3975.3,0.7153]
[1758805304896,4.566,3977.4,3976.6,2.51468503]
[1758805305090,4.566,3977.4,3976.4,0.02514837]
[1758805305416,4.566,3977.4,3976.5,0.2413]
[1758805305618,4.566,3977.4,3976.6,0.30075643]
[1758805305838,5.15609094,3977.3,3975.0,0.2413]
[1758805306141,0.6877,3977.3,3975.5,3.0]
[1758805306315,0.71284094,3977.3,3975.3,2.51553341]
[1758805306500,0.25774094,3977.3,3975.2,0.2413]
[1758805306820,2.96194,3977.2,3975.7,2.51527705]
[1758805307005,3.718643,3977.1,3975.7,0.25152771]
[1758805307318,0.02514094,3977.0,3975.3,0.2413]
[1758805307534,2.11814094,3977.0,3975.9,2.51514331]
[1758805307825,2.11814094,3977.0,3975.5,3.0]
[1758805308027,0.792,3978.1,3975.7,3.0]
[1758805308245,6.671,3978.0,3975.9,3.0]
[1758805308392,6.671,3978.0,3975.8,0.49915217]
[1758805308393,17.154349,3977.9,3976.0,0.34991522]
[1758805308724,0.25774094,3977.8,3976.5,2.51471683]
[1758805308888,2.51420218,3977.5,3976.0,2.51503265]
[1758805309094,2.51458387,3976.9,3975.1,2.98959956]
[1758805309287,3.792,3976.7,3974.4,0.2413]
[1758805309485,2.70307,3976.6,3974.6,2.51597645]
[1758805309725,2.96081094,3976.6,3975.4,2.51541953]
[1758805309926,2.96081094,3976.6,3974.7,0.2413]
[1758805309927,3.464205,3976.5,3974.7,0.2413]
[1758805310110,0.02514094,3976.4,3975.3,2.51547147]
[1758805310315,13.6761,3976.8,3975.6,3.0]
[1758805310495,0.4551,3977.3,3976.5,2.51475253]
[1758805310823,0.02514094,3977.2,3976.4,2.51477475]
[1758805310989,0.02514094,3977.2,3976.2,2.75625697]
[1758805311190,0.4551,3977.1,3976.3,0.6230257]
[1758805311391,0.02514094,3977.2,3975.3,0.002]
[1758805311392,30.0,3976.3,3975.3,0.002]
[1758805311613,30.0,3976.3,3972.6,2.64350075]
[1758805311614,3.0,3975.5,3972.6,0.003]
[1758805311821,0.792,3974.6,3974.5,0.002]
[1758805312125,13.04411739,3974.6,3974.5,0.002]
[1758805312342,10.3987,3974.6,3974.5,0.002]
[1758805312542,7.3987,3974.6,3974.5,0.002]
[1758805312736,6.711,3974.6,3974.5,0.002]
[1758805313135,6.711,3974.6,3974.5,0.1276]
[1758805313321,7.3987,3974.6,3974.5,0.002]
[1758805313522,3.0,3975.1,3974.5,0.002]
[1758805313819,2.887,3975.2,3974.5,0.002]
[1758805313820,4.615,3974.9,3974.5,0.002]
[1758805314032,2.095,3975.2,3974.7,0.1256]
[1758805314237,2.095,3975.2,3974.6,2.51591354]
[1758805314437,4.615,3975.3,3975.0,0.1256]
[1758805314609,0.02514094,3975.2,3975.0,0.1256]
[1758805314814,0.02514094,3975.6,3975.2,0.1256]
[1758805315010,0.02514094,3975.6,3974.5,0.002]
[1758805315210,0.6877,3975.5,3974.5,0.002]
[1758805315442,11.05365494,3975.4,3974.5,0.002]
[1758805315631,2.51573951,3975.0,3974.5,0.002]
[1758805315949,2.51585261,3974.8,3974.5,0.002]
[1758805316119,7.16305931,3974.7,3974.5,0.002]
[1758805316324,12.05729239,3974.6,3974.5,0.002]
[1758805316537,0.6877,3974.6,3974.5,0.002]
[1758805317069,4.622,3974.7,3974.5,0.002]
[1758805317244,4.64714094,3974.7,3974.5,0.002]
[1758805317415,0.4551,3974.6,3974.5,0.002]
[1758805317814,0.71284094,3974.6,3974.5,0.002]
[1758805318523,0.02514094,3974.6,3974.5,0.002]
[1758805318725,4.622,3974.7,3974.5,0.002]
[1758805318927,0.02514094,3974.6,3974.5,0.002]
[1758805319653,4.622,3974.7,3974.5,0.002]
[1758805319953,0.02514094,3974.6,3974.5,0.002]
[1758805320332,3.22881739,3974.6,3974.5,0.002]
[1758805320529,13.05518794,3974.6,3973.7,0.44935246]
[1758805320747,2.51648296,3973.8,3973.7,0.44935246]
[1758805320920,6.75014094,3973.8,3973.7,0.44935246]
[1758805321119,6.725,3973.8,3973.7,0.44935246]
[1758805321654,9.92918296,3973.8,3973.7,0.44935246]
[1758805321855,6.725,3973.8,3973.7,0.44935246]
[1758805322668,4.629,3973.8,3973.7,0.68155246]
[1758805322863,4.629,3973.8,3973.7,1.14115246]
[1758805323181,2.096,3975.1,3973.7,1.50693497]
[1758805323322,4.629,3975.3,3973.9,2.51641963]
[1758805323522,4.629,3975.4,3974.0,3.6918]
[1758805323728,2.096,3975.8,3974.1,0.71696292]
[1758805323962,2.096,3976.5,3974.5,2.51603975]
[1758805324158,0.39446298,3975.9,3975.8,2.51521706]
[1758805324360,4.627,3976.8,3974.7,0.02515913]
[1758805324562,2.096,3977.1,3974.5,2.51603975]
[1758805324563,12.96698794,3976.7,3974.5,2.51603975]
[1758805324862,0.39444718,3976.5,3974.0,0.4596]
[1758805325067,2.51502728,3976.1,3973.7,0.44935246]